Cogmind - Beta 15 @@@ ROGUE MODE // 2025.08.03 @ 11:54:33 Player: cingulata Result: Destroyed by H-66 Slayer with Gauss Rifle Performance ------------- Evolutions (3) 1500 Regions Visited (10) 2000 Robots Destroyed (127) 635 Value Destroyed (3508) 3508 Prototype IDs (29) 580 Alien Tech Used (0) 0 Bonus (600) 600 TOTAL SCORE: 8823 Bonus ------- High Alert Combat Kills 24 Follower Combat Kills 25 Aligned with FarCom 300 Met Imprinter 300 Friendly Fire -49 Cogmind --------- Core Integrity 0/700 Matter 86/300 Energy 100/100 System Corruption 3% Temperature Cool (0) Movement Core (700) Ox13 Location -6/Proximity Caves Parts ------- > --- POWER (1) -------- (None) > --- PROPULSION (5) --- (None) > --- UTILITY (5) ------ High-capacity Storage Unit Advanced Terrain Scan Processor Advanced Targeting Computer > --- WEAPON (2) ------- (None) > --- INVENTORY (20) --- Light Angular Momentum Engine High-capacity Matter Pod (200) Improved Terrain Scanner Core Analyzer Recoil Stabilizer Matter Filter Hacking Suite Dynamic Insulation System Hacking Drone Bay (1/1) Advanced Assault Cannon Advanced Assault Cannon Bore Cannon Bore Cannon Chainsword Peak State ------------ > --- POWER ------------ Light Nuclear Core > --- PROPULSION ------- Improved Treads Armored Treads Armored Treads Armored Huge Wheel > --- UTILITY ---------- High-capacity Storage Unit Improved Terrain Scanner Advanced Terrain Scan Processor Matter Filter Improved Light Armor Plating > --- WEAPON ----------- Molecular Deconstructor > --- INVENTORY -------- Light Angular Momentum Engine High-capacity Matter Pod Advanced Targeting Computer Core Analyzer Recoil Stabilizer Transmission Jammer Improved Medium Armor Plating Medium Reactive Plating Improved Shield Generator Hacking Suite Dynamic Insulation System High-powered Tractor Beam Hacking Drone Bay Advanced Assault Cannon Advanced Assault Cannon Bore Cannon Bore Cannon Proton Missile Launcher Missile Launcher Heavy Rocket Launcher [Rating: 60] Favorites ----------- Power Light Nuclear Core Engine Ion Engine Power Core Light Nuclear Core Propulsion Light Treads Treads Light Treads Leg Aluminum Leg Wheel Compact Wheel Utility High-capacity Storage Unit Device Improved Terrain Scanner Storage High-capacity Storage Unit Processor Advanced Terrain Scan Processor Hackware Hacking Suite Protection Improved Medium Armor Plating Weapon Advanced Assault Cannon Energy Gun Medium Laser Ballistic Gun Heavy Assault Rifle Ballistic Cannon Advanced Assault Cannon Launcher Proton Missile Launcher Special Weapon Molecular Deconstructor Impact Weapon Hammer Slashing Weapon Chainsword Build | -11 -10 -10 -10 -9 -8 -7 -7 -7 -7 -6 ------- Run | Yrd Mat Min Exi Min Mat Fac Low Low Zio Pro Slots Evolved 6 | . . . . . 4 2 . . . . Power . | . . . . . . . . . . . Propulsion 3 | . . . . . 2 1 . . . . Utility 3 | . . . . . 2 1 . . . . Weapon . | . . . . . . . . . . . Parts Attached 78 | 1 15 5 4 . 23 20 2 1 3 4 Power 6 | . 1 1 . . 2 2 . . . . Engine 3 | . 1 1 . . 1 . . . . . Core 3 | . . . . . 1 2 . . . . Reactor . | . . . . . . . . . . . Propulsion 17 | . 5 2 . . 5 3 . 1 1 . Treads 10 | . 3 1 . . 3 1 . 1 1 . Leg . | . . . . . . . . . . . Wheel 7 | . 2 1 . . 2 2 . . . . Hover . | . . . . . . . . . . . Flight . | . . . . . . . . . . . Utility 30 | 1 2 . 3 . 7 11 1 . 2 3 Device 13 | 1 . . 1 . 4 5 . . 2 . Storage 2 | . 1 . 1 . . . . . . . Processor 4 | . . . . . . 3 . . . 1 Hackware 1 | . . . . . . 1 . . . . Protection 10 | . 1 . 1 . 3 2 1 . . 2 Artifact . | . . . . . . . . . . . Weapon 25 | . 7 2 1 . 9 4 1 . . 1 Energy Gun 2 | . 1 . 1 . . . . . . . Energy Cannon . | . . . . . . . . . . . Ballistic Gun 8 | . 5 . . . 2 1 . . . . Ballistic Cannon 7 | . . . . . 5 2 . . . . Launcher 5 | . . 2 . . 1 1 1 . . . Special Weapon 1 | . . . . . . . . . . 1 Impact Weapon 1 | . 1 . . . . . . . . . Slashing Weapon 1 | . . . . . 1 . . . . . Piercing Weapon . | . . . . . . . . . . . Special Melee Weapon . | . . . . . . . . . . . Unidentified Prototypes 5 | . . . . . 2 1 . . 1 1 Parts Lost 24 | . 2 2 . . . 2 . 3 . 15 Power 2 | . 1 . . . . . . . . 1 Propulsion 11 | . 1 2 . . . 2 . 2 . 4 Utility 7 | . . . . . . . . 1 . 6 Weapon 4 | . . . . . . . . . . 4 Highest Loss Streak 15 | . 1 1 . . . 1 . 3 . 15 To Critical Strikes . | . . . . . . . . . . . Average Backups 16 | 6 8 9 10 11 18 19 19 19 19 18 Power 1 | 1 1 2 2 2 1 1 1 1 1 1 Propulsion 1 | 4 3 2 2 2 . 2 2 . . . Utility 7 | . 2 2 3 3 7 9 10 11 12 11 Weapon 5 | 1 1 3 3 4 7 6 6 6 6 6 Tool/Special . | . . . . . . . . . . . Unused Backups 27 | . 6 4 . . 5 3 . . 1 8 Power 5 | . 1 2 . . 1 . . . . 1 Propulsion 3 | . . 1 . . 1 1 . . . . Utility 11 | . 2 1 . . 1 1 . . 1 5 Weapon 8 | . 3 . . . 2 1 . . . 2 Tool/Special . | . . . . . . . . . . . Average Slot Usage (%) 95 | . 98 99 99 100 99 91 92 91 92 82 Engine 5 | . 12 14 14 14 7 . . . . . Core 3 | . . . . . 1 7 7 7 7 5 Treads 17 | . 18 13 14 14 17 16 15 19 23 19 Wheel 12 | . 8 14 14 14 18 12 15 10 7 6 Device 10 | . 1 12 13 1 9 8 18 12 15 12 Storage 9 | . 14 14 14 14 9 7 7 7 7 7 Processor 3 | . . . . . . 7 7 7 7 8 Protection 9 | . 12 1 . 12 16 13 4 9 6 7 Energy Gun 1 | . 8 . . . . . . . . . Ballistic Gun 8 | . 17 27 28 26 1 . . . . . Ballistic Cannon 7 | . . . . . 11 10 8 13 15 6 Slashing Weapon 1 | . . . . . 3 3 1 . . 2 Peak Build Rating 60 | 7 10 11 22 15 37 46 45 49 54 60 Average Rating 31 | 6 8 10 11 14 31 42 43 46 49 44 On Entrance 25 | 6 7 10 11 13 15 30 43 45 48 50 Naked Turns . | . . . . . . . . . . . Heaviest Build 81 | 14 22 22 53 53 69 71 71 71 68 81 Greatest Support 63 | 20 40 20 16 16 40 60 44 60 28 63 Greatest Overweight (x) 24 | . 1 1 3 3 3 2 1 2 2 24 Average Overweight (x) 1 | . . 1 1 3 1 1 1 1 2 2 Largest Inventory Capacity 20 | 8 10 10 20 20 20 20 20 20 20 20 Average Capacity 16 | 8 8 10 14 20 20 20 20 20 20 20 Most Carried 20 | 8 10 10 15 13 20 20 20 20 20 20 Average Carried 16 | 6 8 9 10 12 18 19 19 19 19 18 Final Capacity 20 | 8 10 10 20 20 20 20 20 20 20 20 Final Carried 20 | 8 10 10 12 13 20 19 20 19 20 14 Class Distribution -------------------- 76% | Mutant 15% | Assassin 8% | Skirmisher Dominant Class ---------------- Mutant | -10/Materials Mutant | -10/Mines Mutant | -10/Exiles Mutant | -9/Mines Mutant | -8/Materials Assassin | -7/Factory Mutant | -7/Lower Caves Mutant | -7/Lower Caves Mutant | -7/Zion Mutant | -6/Proximity Caves Resources | -11 -10 -10 -10 -9 -8 -7 -7 -7 -7 -6 ----------- Run | Yrd Mat Min Exi Min Mat Fac Low Low Zio Pro Matter Collected 4395 | 210 592 383 . 46 1280 947 462 154 216 105 Remotely 1207 | . . . . . 607 344 145 27 . 84 Salvage Created 3523 | 161 622 665 . 46 932 443 216 89 . 349 Parts 205 | 9 33 42 . 4 57 37 5 5 . 13 Haulers Intercepted 6 | . 2 . . . 4 . . . . . Recyclers Shooed 4 | . 1 . . 1 2 . . . . . Parts Field Recycled . | . . . . . . . . . . . Retrieved Matter . | . . . . . . . . . . . Parts Self-Destructed 16 | . . . . . . . 1 3 . 12 Prevented . | . . . . . . . . . . . Kills | -11 -10 -10 -10 -9 -8 -7 -7 -7 -7 -6 ------- Run | Yrd Mat Min Exi Min Mat Fac Low Low Zio Pro Combat Hostiles Destroyed 88 | . 17 13 . 3 19 11 4 7 . 14 Guns 29 | . 17 11 . 1 . . . . . . Cannons 27 | . . . . . 13 9 3 1 . 1 AOE 32 | . . 2 . 2 6 2 1 6 . 13 Classes Destroyed 17 | 2 4 1 . 1 5 1 2 . . 1 Worker 3 | . . 1 . . 2 . . . . . Builder 4 | . . . . . 2 2 . . . . Tunneler 6 | 4 . 1 . . 1 . . . . . Hauler 6 | . 2 . . . 4 . . . . . Recycler 9 | 1 1 2 . . 3 2 . . . . Mechanic 1 | . . . . . 1 . . . . . Operator 1 | . . . . . 1 . . . . . Watcher 8 | . 2 . . . 3 3 . . . . Swarmer 34 | . 9 . . 3 11 3 . 3 . 5 Grunt 37 | . 8 13 . . 4 2 2 4 . 4 Brawler 1 | . . . . . . . 1 . . . Sentry 4 | . . . . . 2 1 . . . 1 Specialist 3 | . . . . . . . . . . 3 Hunter 3 | . . . . . 2 1 . . . . Programmer 5 | . . . . . . 4 . . . 1 Zionite 1 | . . . . 1 . . . . . . Packrat 2 | . . . . . . . 2 . . . Thief 1 | . . . . . . . 1 . . . Best Kill Streak 14 | 3 3 3 . 3 10 3 2 7 . 14 Combat Bots Only 14 | . 3 2 . 3 6 3 2 7 . 14 Max Kills in Single Turn 3 | 1 1 3 . 3 3 2 1 3 . 2 Gunslinging . | . . . . . . . . . . . Exploded 3 | . . 2 . 2 2 1 1 3 . 2 Melee . | . . . . . . . . . . . Uniques/NPCs Destroyed . | . . . . . . . . . . . Combat | -11 -10 -10 -10 -9 -8 -7 -7 -7 -7 -6 -------- Run | Yrd Mat Min Exi Min Mat Fac Low Low Zio Pro Hostile Shots Fired 586 | . 105 41 . 2 92 101 16 12 . 217 Missed 167 | . 16 11 . 1 42 29 6 3 . 59 Hits 419 | . 89 30 . 1 50 72 10 9 . 158 Melee 4 | . . . . . . . 4 . . . Projectile 415 | . 89 30 . 1 50 72 6 9 . 158 Critical Strikes 10 | . 1 . . . 2 3 . 1 . 3 Actively Blocked 4 | . . . . . 2 2 . . . . Part Disruptions 1 | . . . . . . 1 . . . . Damage Taken 5857 | . 803 349 . 36 443 1169 184 254 . 2619 Core 955 | . 116 43 . . 86 91 58 . . 561 Absorbed by Shields 244 | . . . . . 128 25 38 . . 53 Redirected to Shielding 395 | . 30 3 . 10 101 214 37 . . . Ignored by Resistances 303 | . . . . . . . . . . 303 Regen/Repaired (Parts) 214 | . . . . . 61 153 . . . . Core Remaining (%) 73 | 100 . . . 36 84 . . . . . Volleys Fired 259 | 9 63 28 . 4 57 58 15 8 . 17 Largest 2 | 2 2 2 . 2 2 2 2 2 . 2 Hottest 90 | 90 73 60 . 46 80 80 80 80 . 80 Shots Fired 473 | 18 126 56 . 6 107 100 27 11 . 22 Gun 204 | 18 126 54 . 5 1 . . . . . Cannon 234 | . . . . . 98 97 22 6 . 11 Launcher 35 | . . 2 . 1 8 3 5 5 . 11 Special . | . . . . . . . . . . . Kinetic 381 | . 87 54 . 5 99 97 22 6 . 11 Thermal 57 | 18 39 . . . . . . . . . Explosive 32 | . . 2 . 1 8 3 2 5 . 11 Electromagnetic 3 | . . . . . . . 3 . . . Robot Hit Streak 15 | 8 15 13 . 3 8 8 8 3 . 11 Robot Miss Streak 6 | 2 5 6 . 1 6 4 2 . . 2 Penetration Max . | . . . . . . . . . . . Secondary Targets 2 | . 1 1 . . . . . . . . Max Gunslinging Chain 1 | . 1 1 . . . . . . . . Shots Hit Robots 274 | 12 87 30 . 4 60 44 25 2 . 10 Core Hits 182 | 6 31 25 . 3 43 20 7 14 . 33 Critical Kills 1 | . 1 . . . . . . . . . Critical Parts Destroyed 1 | . 1 . . . . . . . . . Critical Strikes 20 | 1 5 . . . 8 5 1 . . . Burn 4 | 1 3 . . . . . . . . . Destroy 2 | . 2 . . . . . . . . . Blast 12 | . . . . . 6 5 1 . . . Sever 2 | . . . . . 2 . . . . . Melee Attacks 70 | . 8 . . . 28 31 2 . . 1 Impact 8 | . 8 . . . . . . . . . Slashing 62 | . . . . . 28 31 2 . . 1 Piercing . | . . . . . . . . . . . Sneak Attacks 17 | . 1 . . . 10 4 2 . . . Combat Hostiles . | . . . . . . . . . . . Follow-up Attacks . | . . . . . . . . . . . Damage Inflicted 10354 | 142 1317 563 . 222 2790 1829 1024 556 . 1911 Guns 1921 | 142 1255 459 . 65 . . . . . . Cannons 3161 | . . . . . 1319 1104 493 27 . 218 Explosions 3780 | . . 99 . 157 522 400 380 529 . 1693 Melee 1487 | . 62 . . . 949 325 151 . . . Ramming 5 | . . 5 . . . . . . . . Kinetic 4618 | . 933 459 . 65 1319 1104 493 27 . 218 Thermal 628 | 142 322 . . . . 78 . 86 . . Explosive 3455 | . . 99 . 157 522 322 219 443 . 1693 Electromagnetic 161 | . . . . . . . 161 . . . Impact 62 | . 62 . . . . . . . . . Slashing 1425 | . . . . . 949 325 151 . . . Piercing . | . . . . . . . . . . . Highest Corruption 4 | . . . . . . 4 . . . 3 Average Corruption 3 | . . . . . . 3 . . . 2 Corruption Purged 4 | . . . . . . 4 . . . . Corruption Blocked . | . . . . . . . . . . . Effects 37 | . . . . . . 37 . . . . Message Errors 10 | . . . . . . 10 . . . . Matter Fused 8 | . . . . . . 8 . . . . Heat Flow Errors 6 | . . . . . . 6 . . . . Energy Discharges 4 | . . . . . . 4 . . . . Data Loss (minor) 6 | . . . . . . 6 . . . . Misfires 2 | . . . . . . 2 . . . . Weapon Failures 1 | . . . . . . 1 . . . . Overload Shots . | . . . . . . . . . . . Overflow Damage 797 | . 14 . . 26 303 251 75 87 . 41 Projectiles 150 | . . . . . 54 72 24 . . . Explosions 278 | . . . . 26 8 116 . 87 . 41 Melee 369 | . 14 . . . 241 63 51 . . . Knockbacks 25 | . . . . . 17 6 1 . . 1 Impact . | . . . . . . . . . . . Kinetic 24 | . . . . . 16 6 1 . . 1 Secondary 1 | . . . . . 1 . . . . . Self-Inflicted Damage 464 | . . . . 27 . 151 . 120 . 166 Shots 9 | . . . . 1 . 2 . 2 . 4 Rammed 3 | . . 3 . . . . . . . . Targets Rammed 4 | . . 4 . . . . . . . . Kicked . | . . . . . . . . . . . Crushed 1 | . . 1 . . . . . . . . Highest Temperature 253 | 150 114 4 . . 144 253 19 74 . 33 Average Temperature 31 | 52 24 2 . . 29 41 12 29 . 17 Received Heat Transfer 1157 | . 186 195 . . 150 102 36 99 . 389 Effects 3 | . . . . . . 3 . . . . Energy Bleed 3 | . . . . . . 3 . . . . Siege Activations . | . . . . . . . . . . . Martial Activations . | . . . . . . . . . . . Shielding Activations . | . . . . . . . . . . . Robots Disrupted . | . . . . . . . . . . . Combat Hostiles . | . . . . . . . . . . . Robots Corrupted 1 | . 1 . . . . . . . . . Combat Hostiles . | . . . . . . . . . . . Parts Fried 3 | . 1 . . . 2 . . . . . Impact Corruptions 2 | . 1 . . . 1 . . . . . Robots Melted . | . . . . . . . . . . . Combat Hostiles . | . . . . . . . . . . . Parts Melted 1 | 1 . . . . . . . . . . Heat Transferred 1766 | 446 1110 . . . . 50 . 160 . . Parts Sabotaged . | . . . . . . . . . . . Parts Stolen . | . . . . . . . . . . . Parts Stripped . | . . . . . . . . . . . Power Chain Reactions . | . . . . . . . . . . . Alert | -11 -10 -10 -10 -9 -8 -7 -7 -7 -7 -6 ------- Run | Yrd Mat Min Exi Min Mat Fac Low Low Zio Pro Maximum Alert Level 2 | . . . . . 2 1 . . . . Low Security (%) 78 | 100 100 100 . 100 62 65 . . . . Level 1 13 | . . . . . 8 34 . . . . Level 2 7 | . . . . . 29 . . . . . Level 3 . | . . . . . . . . . . . Level 4 . | . . . . . . . . . . . Level 5 . | . . . . . . . . . . . High Security . | . . . . . . . . . . . Max Security . | . . . . . . . . . . . Peak Influence 514 | 10 178 115 . 76 514 302 . . . . Initial 90 | . . 27 . . . 90 . . . . Average 122 | 3 77 34 . 31 205 147 . . . . Influence Increases 3088 | 25 491 361 . 81 895 745 70 140 . 280 Destroy 0b10 Robot/C 1760 | . 340 280 . 60 380 220 60 140 . 280 Destroy 0b10 Robot/NC 190 | 25 25 20 . . 85 35 . . . . Destroy Leader 318 | . 78 30 . 10 104 86 10 . . . Allied During Kill 1 | . . 1 . . . . . . . . Successful Hack 122 | . 13 . . 5 29 75 . . . . Disable Machine 255 | . . 15 . . 45 195 . . . . Destroy Structure 247 | . 5 15 . 6 102 119 . . . . Lose Combat Pursuer 195 | . 30 . . . 150 15 . . . . Influence Decreases 2978 | 25 421 424 7 81 696 654 360 140 . 170 Entered New Map 267 | . . 43 7 . . 109 108 . . . Time Decay 2161 | 25 401 341 . 81 396 525 252 110 . 30 Lost Part 230 | . 20 20 . . . 20 . 30 . 140 Lost Ally 20 | . . 20 . . . . . . . . Purge Threat 300 | . . . . . 300 . . . . . Squads Dispatched 17 | . 4 2 . . 5 6 . . . . Investigation 6 | . 1 1 . . 3 1 . . . . Extermination 5 | . . . . . . 5 . . . . Reinforcement 5 | . 3 . . . 2 . . . . . Assault 1 | . . 1 . . . . . . . . Garrison . | . . . . . . . . . . . Intercept . | . . . . . . . . . . . Searches Triggered . | . . . . . . . . . . . Construction Impeded 1 | . . . . . 1 . . . . . Haulers Reinforced . | . . . . . . . . . . . Active Scanning Responses . | . . . . . . . . . . . Cargo Convoy Interrupts . | . . . . . . . . . . . Stealth | -11 -10 -10 -10 -9 -8 -7 -7 -7 -7 -6 --------- Run | Yrd Mat Min Exi Min Mat Fac Low Low Zio Pro Distress Signals 5 | . 1 . . . 3 1 . . . . Communications Jammed . | . . . . . . . . . . . Distress Signals . | . . . . . . . . . . . Times Spotted 130 | . 32 15 . 1 31 22 4 5 . 20 Peak Tracking Total 11 | . 4 4 . 1 6 4 3 4 . 11 Tactical Retreats 9 | . 1 . . . 7 1 . . . . Traps | -11 -10 -10 -10 -9 -8 -7 -7 -7 -7 -6 ------- Run | Yrd Mat Min Exi Min Mat Fac Low Low Zio Pro Traps Triggered 9 | . 1 . . . 2 6 . . . . Indirectly . | . . . . . . . . . . . Trap Hack Attempts . | . . . . . . . . . . . Triggered . | . . . . . . . . . . . Disarmed . | . . . . . . . . . . . Reprogrammed . | . . . . . . . . . . . Reused . | . . . . . . . . . . . Traps Extracted . | . . . . . . . . . . . Installed . | . . . . . . . . . . . Triggered . | . . . . . . . . . . . Machines | -11 -10 -10 -10 -9 -8 -7 -7 -7 -7 -6 ---------- Run | Yrd Mat Min Exi Min Mat Fac Low Low Zio Pro Machines Disabled 25 | . . 1 . . 3 13 . 4 . 4 Max in Single Turn 5 | . . 1 . . 1 5 . 4 . 1 Garrison Access 2 | . . . . . 1 1 . . . . Machines Repaired . | . . . . . . . . . . . Machines Dismantled . | . . . . . . . . . . . Machines Sabotaged . | . . . . . . . . . . . Overloaded Fab Kills . | . . . . . . . . . . . Hacking | -11 -10 -10 -10 -9 -8 -7 -7 -7 -7 -6 --------- Run | Yrd Mat Min Exi Min Mat Fac Low Low Zio Pro Machines Accessed 39 | . 8 1 2 1 11 15 . 1 . . Terminals 20 | . 5 . . 1 7 6 . 1 . . Fabricators 1 | . . . . . . 1 . . . . Repair Stations 4 | . 1 . . . 1 2 . . . . Recycling Units 6 | . 2 . . . 1 3 . . . . Scanalyzers 2 | . . . . . 1 1 . . . . Garrison Access 3 | . . . . . 1 2 . . . . Total Hacks 97 | . 20 1 2 2 34 34 . 4 . . Successful 59 | . 10 1 2 1 22 19 . 4 . . Failed 38 | . 10 . . 1 12 15 . . . . Catastrophic 8 | . 3 . . 1 4 . . . . . Database Lockouts . | . . . . . . . . . . . Manual 43 | . 13 . 1 1 16 10 . . . 2 Terminals 60 | . 15 . . 2 24 15 . 4 . . Fabricators 2 | . . . . . . 2 . . . . Repair Stations 10 | . 2 . . . 3 5 . . . . Recycling Units 12 | . 3 . . . 2 7 . . . . Scanalyzers 5 | . . . . . 4 1 . . . . Garrison Access 5 | . . . . . 1 4 . . . . Terminal Hacks 21 | . 3 1 2 1 6 4 . 4 . . Record 5 | . . . 1 . . . . 4 . . Robot Analysis 2 | . 2 . . . . . . . . . Prototype ID Bank 1 | . . . . . . 1 . . . . Open Door 1 | . . 1 . . . . . . . . Branch Access Points 2 | . . . . . 1 1 . . . . Unreport Threat 2 | . . . . . 2 . . . . . Locate Traps 5 | . 1 . . . 2 2 . . . . Zone Layout 2 | . . . . 1 1 . . . . . Proto ID Catalog 1 | . . . 1 . . . . . . . Fabricator Hacks 2 | . . . . . . 2 . . . . Load Schematic 1 | . . . . . . 1 . . . . Build 1 | . . . . . . 1 . . . . Repair Station Hacks 8 | . 1 . . . 3 4 . . . . Scan Component 5 | . 1 . . . 2 2 . . . . Repair 3 | . . . . . 1 2 . . . . Recycling Unit Hacks 9 | . 2 . . . 2 5 . . . . Process 4 | . . . . . 1 3 . . . . Retrieve Matter 3 | . . . . . 1 2 . . . . Retrieve Components 2 | . 2 . . . . . . . . . Scanalyzer 4 | . . . . . 4 . . . . . Insert Component 2 | . . . . . 2 . . . . . Analyze 2 | . . . . . 2 . . . . . Garrison Access Hacks 2 | . . . . . 1 1 . . . . Seal Access 2 | . . . . . 1 1 . . . . Unauthorized Hacks 13 | . 4 . . . 6 3 . . . . Terminals 12 | . 3 . . . 6 3 . . . . Assimilate 1 | . . . . . 1 . . . . . Botnet 9 | . 3 . . . 3 3 . . . . Disrupt 2 | . . . . . 2 . . . . . Fabricators . | . . . . . . . . . . . Repair Stations . | . . . . . . . . . . . Recycling Units 1 | . 1 . . . . . . . . . Mask 1 | . 1 . . . . . . . . . Scanalyzers . | . . . . . . . . . . . Garrison Access . | . . . . . . . . . . . Data Cores Recovered . | . . . . . . . . . . . Used . | . . . . . . . . . . . Hacking Detections 28 | . 7 . . 1 9 10 . 1 . . Full Trace Events 3 | . . . . . 2 1 . . . . Feedback Events . | . . . . . . . . . . . Feedback Blocked . | . . . . . . . . . . . Robot Schematics Acquired . | . . . . . . . . . . . Robots Built . | . . . . . . . . . . . Authchips . | . . . . . . . . . . . Time . | . . . . . . . . . . . Total Robot Build Rating . | . . . . . . . . . . . Part Schematics Acquired 2 | . . . . . 2 . . . . . Parts Built 2 | . . . . . . 2 . . . . Authchips . | . . . . . . . . . . . Time 42 | . . . . . . 42 . . . . Total Part Build Rating 8 | . . . . . . 8 . . . . Parts Repaired 3 | . . . . . 1 2 . . . . Time 114 | . . . . . 38 76 . . . . Parts Recycled . | . . . . . . . . . . . Recycled Matter 213 | . . . . . 115 98 . . . . Retrieved Matter 279 | . . . . . 181 98 . . . . Retrieved Components 12 | . 12 . . . . . . . . . Parts Scanalyzed 2 | . . . . . 2 . . . . . Part Schematics Acquired 2 | . . . . . 2 . . . . . Parts Damaged . | . . . . . . . . . . . Bothacking | -11 -10 -10 -10 -9 -8 -7 -7 -7 -7 -6 ------------ Run | Yrd Mat Min Exi Min Mat Fac Low Low Zio Pro Used RIF Installer . | . . . . . . . . . . . Robots Hacked . | . . . . . . . . . . . Non-combat . | . . . . . . . . . . . Combat . | . . . . . . . . . . . Robot Hacks Applied . | . . . . . . . . . . . Relay Couplers Released . | . . . . . . . . . . . Fabnet Peak Effective % . | . . . . . . . . . . . Robots Rewired . | . . . . . . . . . . . Allies Hacked . | . . . . . . . . . . . Hacks Repelled . | . . . . . . . . . . . Allies | -11 -10 -10 -10 -9 -8 -7 -7 -7 -7 -6 -------- Run | Yrd Mat Min Exi Min Mat Fac Low Low Zio Pro Total Allies 1 | . . 1 . . . . . . . . Largest Group 1 | . . 1 . . . . . . . . Highest-Rated Group 31 | . . 31 . . . . . . . . Highest-Rated Ally 31 | . . 31 . . . . . . . . Total Orders . | . . . . . . . . . . . Ally Attacks 6 | . . 6 . . . . . . . . Total Damage 85 | . . 85 . . . . . . . . Kills 1 | . . 1 . . . . . . . . Allies Corrupted . | . . . . . . . . . . . Allies Melted . | . . . . . . . . . . . Intel | -11 -10 -10 -10 -9 -8 -7 -7 -7 -7 -6 ------- Run | Yrd Mat Min Exi Min Mat Fac Low Low Zio Pro Active Infowar (turns) 7902 | 17 152 1432 603 22 876 1918 856 494 1434 98 Terrain 5541 | . . . . . 876 1797 856 494 1428 90 Seismic 2226 | 17 152 1432 603 22 . . . . . . Jamming 592 | . . . . . . 537 . 30 6 19 Robot Analysis Total 2 | . 2 . . . . . . . . . Derelict Logs Recovered 5 | . . 1 . 1 . . 1 1 1 . Drone Launches . | . . . . . . . . . . . Drone Recoveries . | . . . . . . . . . . . Exploration | -11 -10 -10 -10 -9 -8 -7 -7 -7 -7 -6 ------------- Run | Yrd Mat Min Exi Min Mat Fac Low Low Zio Pro Turns Passed 11424 | 87 1260 1578 621 201 1908 2595 907 666 1434 167 Spaces Moved 6737 | 30 785 809 482 126 891 1363 718 424 1042 67 Core 1 | . . . . . . . . . . 1 Treads 981 | . 200 319 . . 184 230 3 43 . 2 Legs 42 | 30 12 . . . . . . . . . Wheels 5713 | . 573 490 482 126 707 1133 715 381 1042 64 Hover . | . . . . . . . . . . . Flight . | . . . . . . . . . . . Fastest Speed 95 | 120 95 115 115 145 115 108 115 115 130 115 Average Speed 136 | 120 119 164 126 145 147 139 115 134 130 149 Slowest Speed 1250 | 120 160 240 145 145 400 240 240 246 130 1250 Overloaded Moves . | . . . . . . . . . . . Propulsion Burnouts . | . . . . . . . . . . . Robots Hopped . | . . . . . . . . . . . Potential Cave-ins 2 | . . . . . 2 . . . . . Cave-ins Triggered . | . . . . . . . . . . . Exploration Rate (%) 59 | 3 97 100 67 38 67 35 83 62 85 15 Regions Visited 10 Branch Regions 7 Pre-discovered Areas 5 | . . . 1 1 . . . 1 2 . Known Exits Taken 2 | . . . . . 1 1 . . . . Unknown Exits Taken 8 | 1 1 1 1 1 . . 1 1 1 . Scrap Searched 14 | . . 2 . . . . 4 3 5 . Spaces Dug 72 | . 3 . . . 30 39 . . . . Terrain Destroyed 396 | . 3 15 . 6 109 127 24 57 . 55 Melee 40 | . 3 . . . 12 25 . . . . Projectile 71 | . . . . . 37 30 2 1 . 1 AOE 285 | . . 15 . 6 60 72 22 56 . 54 Terrain Rammed . | . . . . . . . . . . . Walls Destroyed . | . . . . . . . . . . . Machines Disabled . | . . . . . . . . . . . Actions | -11 -10 -10 -10 -9 -8 -7 -7 -7 -7 -6 --------- Run | Yrd Mat Min Exi Min Mat Fac Low Low Zio Pro Total 8373 | 62 965 995 496 137 1331 1896 760 503 1121 107 Wait 949 | 21 66 123 . 2 258 339 16 55 66 3 Move 6727 | 29 784 808 481 125 890 1362 717 423 1041 67 Hop . | . . . . . . . . . . . Pick Up 82 | 2 10 9 2 2 27 22 1 3 4 . Fast Attach 20 | 1 4 . . . 4 6 . . 2 3 Attach 27 | . 2 2 4 . 5 5 . 3 . 6 Detach 8 | . 1 . 3 . 2 2 . . . . Swap 151 | . 14 14 4 3 40 47 9 10 3 7 Drop 76 | . 13 7 2 1 20 24 . 1 5 3 Fire 259 | 9 63 28 . 4 57 58 15 8 . 17 Melee 70 | . 8 . . . 28 31 2 . . 1 Ram . | . . . . . . . . . . . Kick . | . . . . . . . . . . . Crush 4 | . . 4 . . . . . . . . Escape Stasis . | . . . . . . . . . . . Rewire . | . . . . . . . . . . . Trap . | . . . . . . . . . . . Miscellaneous . | . . . . . . . . . . . Route ------- -11/Scrapyard -10/Materials (discovered 5 exits: [*Mat x3] / *Min / [*Sub]) -10/Mines (discovered 4 exits: [*Mat x2] / *Exi / [*Sub]) -10/Exiles (discovered 2 exits: *Min x2) -9/Mines -8/Materials (discovered 2 exits: *Fac x2) -7/Factory (discovered 4 exits: *Sto x2 / *Low x2) -7/Lower Caves -7/Lower Caves (discovered 2 exits: [*Fac] / *Zio) -7/Zion (discovered 2 exits: Dee / *Pro) -6/Proximity Caves History --------- Turn | Location | Event 17 | -11/Scrapyard | Discovered new exit (range 3) 88 | -11/Scrapyard | Entered Materials 337 | -10/Materials | Build established: Mutant 401 | -10/Materials | Discovered new exit (range 6) 457 | -10/Materials | Discovered new exit (range 12) 509 | -10/Materials | Discovered new exit (range 5) 796 | -10/Materials | Discovered new exit (range 4) 1079 | -10/Materials | Discovered new exit (range 8) 1348 | -10/Materials | Entered Mines 1394 | -10/Mines | Excavation squad dispatched 1394 | -10/Mines | A large section of the Mines collapsed 1516 | -10/Mines | Core integrity fell below 50% 1644 | -10/Mines | Excavation squad dispatched 1674 | -10/Mines | Met a Derelict testing a Signal Generator 1791 | -10/Mines | Discovered new exit (range 10) 2671 | -10/Mines | Met a Derelict shopkeep closing up shop 2713 | -10/Mines | Deemed a non-threat by the Exiles lab entrance 2780 | -10/Mines | Discovered new exit (range 12) 2840 | -10/Mines | Learned 2 Materials zone layouts 2849 | -10/Mines | Discovered new exit (range 12) 2921 | -10/Mines | Discovered new exit (range 5) 2926 | -10/Mines | Entered Exiles 2944 | -10/Exiles | Discovered new exit (range 15) 2958 | -10/Exiles | Met 8R-AWN 2975 | -10/Exiles | Met EX-HEX 3020 | -10/Exiles | Met EX-DEC 3030 | -10/Exiles | Learned location of Zion (-7) 3054 | -10/Exiles | Met EX-BIN 3070 | -10/Exiles | Aligned with FarCom system 3071 | -10/Exiles | Given EX-Vault access code 3374 | -10/Exiles | Opened EX-Vault 3388 | -10/Exiles | Found Skeleton Box 3399 | -10/Exiles | Found AWS/Thermal 3431 | -10/Exiles | Warned to stay clear of 0b10 Research branches 3442 | -10/Exiles | Exiles lab attacked by MAIN.C 3525 | -10/Exiles | Discovered new exit (range 15) 3547 | -10/Exiles | Left Exiles lab with AWS/Thermal 3547 | -10/Exiles | Entered Mines 3731 | -9/Mines | Discovered new exit (range 5) 3734 | -9/Mines | Assembled infested the area 3748 | -9/Mines | Entered Materials 3748 | -8/Materials | Evolved 4 slots: Propulsion x2, Utility x2 3749 | -8/Materials | Identified exit to Factory 4594 | -8/Materials | Discovered exit to Factory (range 8) 5214 | -8/Materials | Repaired Imp. Propulsion Shielding 5656 | -8/Materials | Entered Factory 5656 | -7/Factory | Evolved 2 slots: Propulsion x1, Utility x1 5795 | -7/Factory | Build established: Assassin 6295 | -7/Factory | Repaired Imp. Weapon Shielding 6557 | -7/Factory | Discovered new exit (range 10) 6640 | -7/Factory | Identified exit to Storage 7302 | -7/Factory | Build established: Mutant 7486 | -7/Factory | Fabricated Adv. Assault Cannon (x2) 7849 | -7/Factory | Build established: Skirmisher 7896 | -7/Factory | Repaired Imp. Weapon Shielding 7973 | -7/Factory | Discovered exit to Storage (range 15) 8214 | -7/Factory | Identified exit to Lower Caves 8251 | -7/Factory | Entered Lower Caves 8483 | -7/Lower Caves | Learned Factory security intel 8535 | -7/Lower Caves | Build established: Mutant 9030 | -7/Lower Caves | Discovered new exit (range 14) 9158 | -7/Lower Caves | Entered another Lower Caves area 9175 | -7/Lower Caves | Discovered new exit (range 16) 9189 | -7/Lower Caves | Learned 4 Factory zone layouts 9399 | -7/Lower Caves | Learned location of Extension (-5) 9401 | -7/Lower Caves | Attracted the attention of an 0b10 base 9432 | -7/Lower Caves | Destroyed 7 combat bots 9436 | -7/Lower Caves | Lost 3 parts (2n1u) 9800 | -7/Lower Caves | Discovered new exit (range 14) 9824 | -7/Lower Caves | Entered Zion 9897 | -7/Zion | Discovered new exit (range 15) 10079 | -7/Zion | Identified exit to Deep Caves 10113 | -7/Zion | Learned location of Data Miner (-6) 10245 | -7/Zion | Given the Hacking Drone Bay 10248 | -7/Zion | Found Prototype Device 10248 | -7/Zion | Identified Hacking Drone Bay 11027 | -7/Zion | Rebuked by Imprinter 11258 | -7/Zion | Entered Proximity Caves 11274 | -6/Proximity Caves | Acquired the password to a Derelict Tinkerer's latest research 11287 | -6/Proximity Caves | Found Prototype Special Weapon 11287 | -6/Proximity Caves | Identified Molecular Deconstructor 11345 | -6/Proximity Caves | Attracted the attention of an 0b10 base 11364 | -6/Proximity Caves | Caught by Unaware searching for contraband prototypes 11388 | -6/Proximity Caves | Caught by Unaware searching for contraband prototypes 11408 | -6/Proximity Caves | Core integrity fell below 50% 11422 | -6/Proximity Caves | Core integrity fell below 20% 11425 | -6/Proximity Caves | Destroyed by H-66 Slayer with Gauss Rifle Last Messages --------------- 11412_ Slug penetrates Earth. 11412_ Arm. Treads destroyed. 11413_ X-72 Disruptor destroyed. 11414_ Lgt. Nuclear Core fries itself beyond repair. 11415_ Penetrated by Slug. 11415_ Hpw. Tractor Beam destroyed. 11415_ Penetrated by Slug. 11415_ Med. Reactive Plating destroyed. 11415_ Penetrated by Slug. 11417_ Pulse Rifle fries itself beyond repair. 11418_ Penetrated by Slug. 11418_ Hvy. Rocket Launcher destroyed. 11418_ Penetrated by Slug. 11418_ Proton Missile Launcher destroyed. 11421_ Slug penetrates Wall. 11421_ Slug penetrates Machine. 11422_ The unstable cave ceiling collapses. 11423_ Imp. VSS Leg fries itself beyond repair. 11423_ Penetrated by Slug. Map ----- +----------------------------------------------------+ | ?????????????????????????????????????????????????? | | ?????????????????????????????????????????????????? | | ?????????????????????????????????????????????????? | | ?????????????????????????????????????????????????? | | ?????????????????????????????????????????????????? | | ?????????????????????????????????????????????????? | | ?????????????????????????????????????????????????? | | ?????????????????????????????????????????????????? | | ?????????????????????????????????????????????????? | | ?????????????????????????????????????????????????? | | ?????????????????????????????????????????????????? | | ?????????????????????????????????????????????????? | | ?????????????????????????????????????????????????? | | ?????????????????????????????????????????????????? | | ?????????????????????????????????????????????????? | | ?????????????????????????????????????????????????? | | ?????????????????????????????????????????????????? | | ?????????????????????????????????????????????????? | | ?????????????????????????????????????????????????? | | ?????????????????????????????????????????????????? | | ??????????????????????####???????????????????????? | | ?????????????????????#? ###?????????????????????? | | ?????????????#???#?##### # #???#?????????????????? | | ????????#??######### ????#?????????????????? | | ??????? ## ### ## ##?????????????? | | ??????? @ ????????? | | ??????? g Y ????????? | | ?????? % ###++++#####???????????? | | ?????? % # """" """?????????????? | | ?????# " " ?????????????? | | ??????# ????????????? | | ??????# ????????????? | | ??????# #//#### ????????????? | | ??????# ?? ????????????? | | ?????# h "#?????????????? | | ????# % h #" "??????????????? | | ??##? ??????????????? | | #??##??# ### # """" #?????????????? | | ??##?### ??## "" """" ???#??????????? | | #?###### ##### = """ """? ?? ???????????? | | ######?# ###?# * = ""T ??"?????????????? | | ?#?########### ! #"""? ???? ???????????? | | ##??#####?##### ##############????????????? | | ?######?###### # ?????????? | | #########?## # ?????????? | | ?###?#???## ### ### ### ##????????????? | | ?#?#?###### #### #?? ? ?????????????? | | ?###??#### ########## #???? ? ?????????????? | | ??###### #######?## #???? ??????????????? | | #### ####?#### ##?????????????????? | +----------------------------------------------------+ Best States ------------- Heat Dissipation 45 Energy Generation 14 Energy Capacity 265 Matter Stores 300 Matter Capacity 300 Sight Range 16 Terrain Scan Range 16 Terrain Scan Density 210 Jamming Range 12 Armor Coverage 600 Resistance: KI 30 Power Shielding 33 Propulsion Shielding 66 Weapon Shielding 66 Evasion (%) 55 Targeting Accuracy 8 Recoil Reduction 3 Matter Filtering 30 Offensive Hacking 10 Item Schematics ----------------- Missile Launcher | -8/Materials | Scanalyzed Adv. Assault Cannon | -8/Materials | Scanalyzed Robot Schematics ------------------ None Fabricated ------------ Adv. Assault Cannon | x2 | -7/Factory Repaired ---------- Imp. Propulsion Shielding | 39% | -8/Materials Imp. Weapon Shielding | 21% | -7/Factory Imp. Weapon Shielding | 26% | -7/Factory Alien Tech Used ----------------- None Achievements -------------- None Challenges ------------ None Game ------ Seed CarbideColdClaymores Manual? 0 Play Time 02:11:38 Cumulative 72.1 hours Start 2025.08.01 @ 08:41:15 End 2025.08.03 @ 11:54:33 Sessions 7 Manual Loads 0 Difficulty Rogue Special Mode None Game No. 52 Rogue 51 Adventurer 0 Explorer 1 Win Type - Total 2 Types 2/0/0/0/0/0/0/0/0/0 Lore% 41 Gallery% 34 Achievement% 32 Wizard Run 0 Options --------- Layout 2 ASCII 0 Keyboard 0 Movement Numpad Keybinds 0 Fullscreen 1 Font 32/SmallcapsGlow Map View 50x44 Zoom Use 0% Tactical HUD 1 Map Filters NONE Filters NONE Steam 1 RUN: 7500e3b4-40f8-4e67-98f0-569ab8d6f05c